bitfinex/quotes_BTCUSD_20250809
["timestamp","ask_amount","ask_price","bid_price","bid_amount"]
[1754718904395,0.26277706,116860.0,116850.0,0.001]
[1754718904606,0.68484162,116860.0,116850.0,0.001]
[1754718906542,0.7165664,116860.0,116850.0,0.001]
[1754718906754,0.69285301,116860.0,116850.0,0.001]
[1754718906963,0.68484162,116860.0,116850.0,0.001]
[1754718907847,0.69285491,116860.0,116850.0,0.001]
[1754718908962,0.71030393,116860.0,116850.0,0.001]
[1754718909378,0.28823937,116860.0,116850.0,0.001]
[1754718909593,0.71030393,116860.0,116850.0,0.001]
[1754718910263,1.13709818,116860.0,116850.0,0.001]
[1754718910699,1.05030393,116860.0,116850.0,0.001]
[1754718911498,1.05030931,116860.0,116850.0,0.001]
[1754718913461,0.52860862,116850.0,116840.0,4.72e-05]
[1754718913668,1.19050396,116850.0,116840.0,4.72e-05]
[1754718918299,1.18248529,116850.0,116840.0,4.72e-05]
[1754718918786,1.26927954,116850.0,116840.0,4.72e-05]
[1754718918960,0.84721498,116850.0,116840.0,4.72e-05]
[1754718919170,1.26927954,116850.0,116840.0,4.72e-05]
[1754718919371,0.76042073,116850.0,116840.0,4.72e-05]
[1754718919544,1.18248529,116850.0,116840.0,4.72e-05]
[1754718920135,1.20819429,116850.0,116840.0,4.72e-05]
[1754718920750,0.78612973,116850.0,116840.0,4.72e-05]
[1754718920980,1.20819429,116850.0,116840.0,4.72e-05]
[1754718921178,1.20510429,116850.0,116840.0,4.72e-05]
[1754718921764,1.20817429,116850.0,116840.0,4.72e-05]
[1754718922629,1.17939529,116850.0,116840.0,0.0051672]
[1754718923048,1.17939529,116850.0,116840.0,0.0020072]
[1754718923708,1.15976627,116850.0,116840.0,0.0051672]
[1754718923906,0.59802171,116850.0,116840.0,0.0051672]
[1754718924115,0.73778171,116850.0,116840.0,0.0051672]
[1754718925404,0.39778171,116850.0,116840.0,0.0061672]
[1754718928804,0.39778171,116850.0,116840.0,0.0071672]
[1754718929834,0.39986171,116850.0,116840.0,0.0071672]
[1754718930658,0.39778171,116850.0,116840.0,0.0071672]
[1754718931449,0.39986171,116850.0,116840.0,0.0020472]
[1754718931658,1.16499627,116850.0,116840.0,0.0020472]
[1754718931873,1.21507346,116850.0,116840.0,0.0020472]
[1754718932078,0.7930089,116850.0,116840.0,0.0020472]
[1754718932306,1.21507346,116850.0,116840.0,0.0020472]
[1754718932509,1.18244529,116850.0,116840.0,4.72e-05]
[1754718934310,0.76038073,116850.0,116840.0,4.72e-05]
[1754718934524,1.18244529,116850.0,116840.0,4.72e-05]
[1754718935555,1.20815329,116850.0,116840.0,4.72e-05]
[1754718936637,1.66223748,116850.0,116840.0,1e-08]
[1754718937249,1.24017292,116850.0,116840.0,1e-08]
[1754718937860,1.24117292,116850.0,116840.0,1e-08]
[1754718938835,1.23316329,116850.0,116840.0,1e-08]
[1754718939047,1.23416329,116850.0,116840.0,1e-08]
[1754718939245,1.65622785,116850.0,116840.0,1e-08]
[1754718939667,1.66423629,116850.0,116840.0,1e-08]
[1754718940084,0.82010717,116850.0,116840.0,1e-08]
[1754718940289,1.66423629,116850.0,116840.0,1e-08]
[1754718940498,1.65622785,116850.0,116840.0,1e-08]
[1754718940730,1.70763236,116850.0,116840.0,1e-08]
[1754718942209,1.37275239,116840.0,116830.0,1e-08]
[1754718942460,1.6020545,116840.0,116830.0,1e-08]
[1754718942757,1.18305994,116840.0,116830.0,1e-08]
[1754718943652,1.21807496,116840.0,116830.0,1e-08]
[1754718943885,0.17124753,116790.0,116780.0,0.0004]
[1754718944108,0.17124753,116790.0,116780.0,0.00236]
[1754718944323,0.17124753,116790.0,116780.0,0.00566194]
[1754718945351,0.17124753,116790.0,116780.0,0.00766194]
[1754718947174,0.17124753,116790.0,116780.0,0.00966194]
[1754718947508,0.17124753,116790.0,116780.0,0.08486033]
[1754718947932,0.17124753,116790.0,116780.0,0.00966194]
[1754718948827,0.17124753,116790.0,116780.0,0.15002194]
[1754718949514,0.17124753,116790.0,116780.0,0.15006194]
[1754718949725,0.17124753,116790.0,116780.0,0.00966194]
[1754718949935,0.17124753,116790.0,116780.0,0.15002194]
[1754718950542,0.17124753,116790.0,116780.0,0.16588219]
[1754718951612,0.1712451,116800.0,116780.0,0.76134972]
[1754718951751,0.5112451,116800.0,116790.0,0.59641209]
[1754718951957,0.5112451,116800.0,116790.0,0.59847209]
[1754718952815,0.34,116800.0,116790.0,0.59847209]
[1754718953025,0.34,116800.0,116790.0,0.68626634]
[1754718953663,0.17980262,116810.0,116790.0,0.68726634]
[1754718953792,0.51980262,116810.0,116800.0,0.73913784]
[1754718953993,0.51980262,116810.0,116800.0,0.14576]
[1754718956391,0.51980262,116810.0,116800.0,0.14790041]
[1754718956563,0.51980262,116810.0,116800.0,0.16627688]
[1754718957636,0.51980262,116810.0,116800.0,0.16727688]
[1754718958056,0.51980262,116810.0,116800.0,0.34065016]
[1754718958275,0.51980262,116810.0,116800.0,0.76057431]
[1754718959236,0.51980262,116810.0,116800.0,0.31799287]
[1754718959453,0.51980262,116810.0,116800.0,0.74005743]
[1754718960627,0.34,116810.0,116800.0,0.74005743]
[1754718960833,0.17123555,116820.0,116800.0,0.74005743]
[1754718961031,0.17123555,116820.0,116800.0,0.73695743]
[1754718961231,0.51123555,116820.0,116810.0,0.0031]
[1754718961437,0.51123555,116820.0,116810.0,0.00516]
[1754718967244,0.51123555,116820.0,116810.0,0.17637821]
[1754718968637,0.51123555,116820.0,116810.0,0.00516]
[1754718968841,0.51123555,116820.0,116800.0,0.41050569]
[1754718968842,0.17121821,116810.0,116800.0,0.41050569]
[1754718969050,0.17121821,116810.0,116800.0,0.27196569]
[1754718969251,0.17121821,116810.0,116800.0,0.41212569]
[1754718970077,0.17317821,116810.0,116800.0,0.32633144]
[1754718970972,0.17317821,116810.0,116800.0,0.32733144]
[1754718971379,0.17317821,116810.0,116800.0,0.18717144]
[1754718971581,0.17317821,116810.0,116800.0,0.32721144]
[1754718972418,0.17121821,116810.0,116800.0,0.32721144]
[1754718973063,0.17121821,116810.0,116800.0,0.41400569]
[1754718973584,0.17121821,116810.0,116800.0,0.32721144]
[1754718974001,0.17121821,116810.0,116800.0,0.15597857]
[1754718974212,0.17317821,116810.0,116800.0,0.01593857]
[1754718974421,0.17317821,116810.0,116800.0,0.14704]
[1754718976524,0.17317821,116810.0,116800.0,0.00406]
[1754718976741,0.17317821,116810.0,116800.0,0.14172]
[1754718976962,0.17627821,116810.0,116800.0,0.14172]
[1754718978598,0.17317821,116810.0,116800.0,0.14172]
[1754718979407,0.17317821,116810.0,116800.0,0.14378]
[1754718985534,0.17317821,116810.0,116800.0,0.14346]
[1754718987946,0.17317821,116810.0,116800.0,0.22214292]
[1754718988582,0.17317821,116810.0,116800.0,0.14643]
[1754718990888,0.17433555,116820.0,116800.0,0.31980328]
[1754718990889,0.17123555,116820.0,116800.0,0.31980328]
[1754718991212,0.17123555,116820.0,116810.0,0.17418821]
[1754718991425,0.33794378,116830.0,116810.0,0.17614821]
[1754718991635,0.42480589,116830.0,116820.0,0.13924]
[1754718991863,0.42372589,116830.0,116820.0,0.21298528]
[1754718992240,0.42372589,116830.0,116820.0,0.13924]
[1754718992663,0.26738616,116830.0,116820.0,0.56623456]
[1754718992879,0.26738616,116830.0,116820.0,0.5663765]
[1754718993045,0.26738616,116830.0,116820.0,0.14431194]
[1754718993988,0.26938616,116830.0,116820.0,0.14431194]
[1754718994225,0.26938616,116830.0,116820.0,0.14134194]
[1754718994706,0.26738616,116830.0,116820.0,0.14134194]
[1754718996590,0.26738616,116830.0,116820.0,0.21510141]
[1754718996804,0.26738616,116830.0,116820.0,0.14134194]
[1754718997064,0.26738616,116830.0,116820.0,0.13938194]
[1754719004997,0.69252072,116830.0,116820.0,0.13938194]
[1754719005240,0.77938283,116830.0,116820.0,0.13878194]
[1754719005469,0.77938283,116830.0,116820.0,0.00014194]
[1754719006651,1.3000147,116830.0,116820.0,0.00014194]
[1754719006888,1.21322045,116830.0,116820.0,0.00014194]
[1754719007361,1.23066947,116830.0,116820.0,0.00014194]
[1754719007840,1.16119185,116830.0,116820.0,0.00014194]
[1754719009040,1.16921152,116830.0,116820.0,0.00014194]
[1754719009279,1.22407668,116830.0,116820.0,0.00014194]
[1754719009765,1.18690585,116830.0,116820.0,0.00014194]
[1754719015095,0.76584129,116830.0,116820.0,0.00014194]
[1754719019444,0.90444129,116830.0,116820.0,0.00014194]
[1754719020033,0.88008129,116830.0,116820.0,0.00014194]
[1754719030188,1.30214585,116830.0,116820.0,0.00014194]
[1754719032540,1.3889401,116830.0,116820.0,0.00014194]
[1754719033893,0.96687554,116830.0,116820.0,0.00014194]
[1754719034120,1.3889401,116830.0,116820.0,0.00014194]
[1754719034354,1.39695922,116830.0,116820.0,0.00014194]
[1754719034814,0.97489466,116830.0,116820.0,0.00014194]
[1754719035041,1.31016497,116830.0,116820.0,0.00014194]
[1754719039553,1.30709497,116830.0,116820.0,0.00511194]
[1754719039772,0.88503041,116830.0,116820.0,0.00511194]
[1754719040002,0.74444041,116830.0,116820.0,0.00511194]
[1754719040224,0.85712641,116830.0,116820.0,0.00511194]
[1754719040869,0.51712641,116830.0,116820.0,0.4271765]
[1754719041119,0.50910729,116830.0,116820.0,0.00511194]
[1754719042043,0.49165827,116830.0,116820.0,0.00511194]
[1754719049115,0.49341827,116830.0,116820.0,0.00511194]
[1754719061306,0.49341827,116830.0,116820.0,0.00213194]
[1754719061569,0.49663827,116830.0,116820.0,0.00014194]
[1754719061777,0.51912927,116830.0,116820.0,0.00014194]
[1754719076062,0.51912927,116830.0,116820.0,0.00212194]
[1754719078536,0.51912927,116830.0,116820.0,0.00014194]
[1754719086746,0.52225927,116830.0,116820.0,0.00014194]
[1754719092576,0.83901636,116830.0,116820.0,0.00014194]
[1754719093404,0.52225927,116830.0,116820.0,0.00014194]
[1754719093608,0.83901636,116830.0,116820.0,0.00014194]
[1754719094609,0.52225927,116830.0,116820.0,0.00014194]
[1754719094812,0.83901636,116830.0,116820.0,0.00014194]
[1754719095220,0.52225927,116830.0,116820.0,0.00014194]
[1754719095641,0.83901636,116830.0,116820.0,0.00014194]
[1754719095846,0.52225927,116830.0,116820.0,0.00014194]
[1754719096055,0.83901636,116830.0,116820.0,0.00014194]
[1754719101583,0.52225927,116830.0,116820.0,0.00014194]
[1754719101791,0.83901636,116830.0,116820.0,0.00014194]
[1754719102001,0.51912927,116830.0,116820.0,0.00014194]
[1754719102205,0.83588636,116830.0,116820.0,0.00014194]
[1754719102422,0.51912927,116830.0,116820.0,0.00014194]
[1754719102631,0.83588636,116830.0,116820.0,0.00014194]
[1754719102983,0.83588636,116830.0,116820.0,0.00224194]
[1754719104613,0.51912927,116830.0,116820.0,0.00224194]
[1754719104825,0.83412636,116830.0,116820.0,0.00522194]
[1754719105396,0.51736927,116830.0,116820.0,0.00522194]
[1754719105617,0.83412636,116830.0,116820.0,0.00522194]
[1754719106729,0.83616636,116830.0,116820.0,0.00522194]
[1754719107144,0.51940927,116830.0,116820.0,0.00522194]
[1754719107346,0.51736927,116830.0,116820.0,0.00522194]
[1754719107668,0.83412636,116830.0,116820.0,0.00522194]
[1754719107866,0.51736927,116830.0,116820.0,0.00522194]
[1754719108268,0.83412636,116830.0,116820.0,0.00522194]
[1754719108472,0.51736927,116830.0,116820.0,0.00522194]
[1754719108679,0.83412636,116830.0,116820.0,0.00522194]
[1754719108850,0.51736927,116830.0,116820.0,0.00522194]
[1754719109236,0.83412636,116830.0,116820.0,0.00522194]
[1754719111506,0.83610636,116830.0,116820.0,0.00522194]
[1754719112131,0.51934927,116830.0,116820.0,0.00522194]
[1754719112380,0.83610636,116830.0,116820.0,0.00224194]
[1754719114306,0.51934927,116830.0,116820.0,0.00224194]
[1754719114511,0.51934927,116830.0,116820.0,0.00522194]
[1754719114941,0.83610636,116830.0,116820.0,0.00522194]
[1754719116637,0.83610636,116830.0,116820.0,0.00224194]
[1754719118362,0.51934927,116830.0,116820.0,0.00224194]
[1754719118569,0.83610636,116830.0,116820.0,0.00522194]
[1754719118785,0.51934927,116830.0,116820.0,0.00522194]
[1754719118963,0.51736927,116830.0,116820.0,0.00522194]
[1754719119587,0.83616636,116830.0,116820.0,0.00522194]
[1754719119874,0.51940927,116830.0,116820.0,0.00522194]
[1754719120093,0.35325827,116830.0,116820.0,0.63873612]
[1754719120299,0.49129827,116830.0,116820.0,0.71973141]
[1754719120509,0.35325827,116830.0,116820.0,0.40297432]
[1754719122282,0.35325827,116830.0,116820.0,0.54097432]
[1754719123019,0.35325827,116830.0,116820.0,0.22421723]
[1754719123219,0.35325827,116830.0,116820.0,0.45997903]
[1754719129238,0.35325827,116830.0,116820.0,0.14322194]
[1754719129449,0.35325827,116830.0,116820.0,0.45997903]
[1754719130079,0.35325827,116830.0,116820.0,0.14322194]
[1754719130316,0.35325827,116830.0,116820.0,0.45997903]
[1754719130489,0.35325827,116830.0,116820.0,0.50597693]
[1754719130852,0.35325827,116830.0,116820.0,0.18921984]
[1754719131056,0.35325827,116830.0,116820.0,0.45997903]
[1754719131510,0.69259438,116830.0,116820.0,0.00014194]
[1754719132095,0.37277729,116830.0,116820.0,0.00014194]
[1754719132296,0.39848729,116830.0,116820.0,0.00014194]
[1754719132514,0.71524438,116830.0,116820.0,0.00014194]
[1754719134278,0.39848729,116830.0,116820.0,0.00014194]
[1754719134427,0.71524438,116830.0,116820.0,0.00014194]
[1754719135278,0.39848729,116830.0,116820.0,0.00014194]
[1754719135742,0.39848729,116830.0,116820.0,0.00226194]
[1754719135952,0.39848729,116830.0,116820.0,0.32220903]
[1754719136175,0.39848729,116830.0,116820.0,0.03767284]
[1754719136377,0.39848729,116830.0,116820.0,0.00545194]
[1754719136555,0.39848729,116830.0,116820.0,0.32220903]
[1754719137588,0.39848729,116830.0,116820.0,0.00545194]
[1754719139275,0.39848729,116830.0,116820.0,0.32220903]
[1754719140900,0.39848729,116830.0,116820.0,0.31901903]
[1754719141045,0.39848729,116830.0,116820.0,0.45681903]
[1754719141253,0.39848729,116830.0,116820.0,0.18606284]
[1754719141482,0.39848729,116830.0,116820.0,0.45681903]
[1754719142737,0.39848729,116830.0,116820.0,0.46000903]
[1754719143136,0.39848729,116830.0,116820.0,0.14325194]
[1754719143446,0.39848729,116830.0,116820.0,0.46000903]
[1754719144277,0.39848729,116830.0,116820.0,0.45681903]
[1754719144657,0.39848729,116830.0,116820.0,0.50281993]
[1754719145265,0.39848729,116830.0,116820.0,0.50600993]
[1754719145628,0.39848729,116830.0,116820.0,0.18606284]
[1754719145838,0.39848729,116830.0,116820.0,0.45681903]
[1754719154105,0.39848729,116830.0,116820.0,0.14006194]
[1754719154343,0.39848729,116830.0,116820.0,0.45681903]
[1754719155558,0.39848729,116830.0,116820.0,0.14006194]
[1754719158090,0.39848729,116830.0,116820.0,0.45681903]
[1754719162062,0.39848729,116830.0,116820.0,0.14006194]
[1754719162265,0.39848729,116830.0,116820.0,0.45681903]
[1754719163080,0.39848729,116830.0,116820.0,0.14006194]
[1754719163487,0.39848729,116830.0,116820.0,0.45681903]
[1754719165465,0.38103827,116830.0,116820.0,0.45681903]
[1754719165662,0.38103827,116830.0,116820.0,0.50281993]
[1754719166074,0.38103827,116830.0,116820.0,0.18606284]
[1754719166279,0.38103827,116830.0,116820.0,0.45681903]
[1754719167316,0.38103827,116830.0,116820.0,0.45995903]
[1754719168888,0.38103827,116830.0,116820.0,0.45959903]
[1754719169294,0.38103827,116830.0,116820.0,0.32215903]
[1754719169689,0.38103827,116830.0,116820.0,0.45959903]
[1754719170134,0.38103827,116830.0,116820.0,0.50555893]
[1754719170393,0.38103827,116830.0,116820.0,0.36811893]
[1754719170720,0.38103827,116830.0,116820.0,0.18880184]
[1754719170921,0.38103827,116830.0,116820.0,0.45959903]
[1754719171529,0.38103827,116830.0,116820.0,0.45955903]
[1754719171735,0.38103827,116830.0,116820.0,0.32215903]
[1754719171947,0.38103827,116830.0,116820.0,0.45955903]
[1754719173167,0.38103827,116830.0,116820.0,0.45951903]
[1754719173387,0.38103827,116830.0,116820.0,0.50547093]
[1754719174219,0.38103827,116830.0,116820.0,0.18871384]
[1754719174429,0.38103827,116830.0,116820.0,0.45951903]
[1754719176430,0.38103827,116830.0,116820.0,0.77627612]
[1754719180644,0.37896827,116830.0,116820.0,0.77627612]
[1754719181514,0.35325827,116830.0,116820.0,0.77627612]
[1754719185151,0.35508827,116830.0,116820.0,0.77627612]
[1754719187682,0.35508827,116830.0,116820.0,0.00226194]
[1754719187868,0.35508827,116830.0,116820.0,0.63577612]
[1754719189073,0.35508827,116830.0,116820.0,0.71338773]
[1754719189761,0.35508827,116830.0,116820.0,0.63577612]
[1754719191788,0.35508827,116830.0,116820.0,0.63880612]
[1754719192874,0.37253729,116830.0,116820.0,0.63880612]
[1754719193751,0.37253729,116830.0,116820.0,0.77592612]
[1754719195856,0.37070729,116830.0,116820.0,0.77592612]
[1754719196067,0.37070729,116830.0,116820.0,0.85351873]
[1754719196978,0.37070729,116830.0,116820.0,0.85451873]
[1754719197327,0.36970729,116830.0,116820.0,0.85451873]
[1754719197531,0.36970729,116830.0,116820.0,0.85351873]
[1754719197807,0.36970729,116830.0,116820.0,0.85451873]
[1754719199110,0.36970729,116830.0,116820.0,0.22100455]
[1754719199317,0.36970729,116830.0,116820.0,0.77692612]
[1754719201482,0.36970729,116830.0,116820.0,1.09368321]
[1754719201483,0.35204328,116830.0,116820.0,1.09368321]
[1754719201705,0.26518117,116830.0,116820.0,1.09368321]
[1754719201969,0.26518117,116830.0,116820.0,0.77692612]
[1754719204384,0.26518117,116830.0,116820.0,0.94812968]
[1754719204607,0.26518117,116830.0,116820.0,1.03492393]
[1754719204824,0.17973296,116840.0,116820.0,1.35168102]
[1754719205036,0.1711889,116830.0,116820.0,0.57801684]
[1754719205247,0.1711889,116830.0,116820.0,0.86053037]
[1754719205670,0.1711889,116830.0,116820.0,0.23004619]
[1754719205882,0.1711889,116830.0,116820.0,0.77676612]
[1754719206097,0.1711889,116830.0,116820.0,0.77576612]
[1754719206358,0.1731589,116830.0,116820.0,0.77576612]
[1754719207165,0.1731589,116830.0,116820.0,0.77572612]
[1754719207396,0.1711889,116830.0,116820.0,0.77572612]
[1754719207605,0.1711889,116830.0,116820.0,0.86252037]
[1754719208916,0.1711889,116830.0,116820.0,0.22900619]
[1754719209129,0.1711889,116830.0,116820.0,0.77572612]
[1754719215028,0.1711889,116830.0,116820.0,0.14221194]
[1754719215231,0.1711889,116830.0,116820.0,0.77572612]
[1754719217825,0.1711889,116830.0,116820.0,0.14221194]
[1754719218028,0.1731589,116830.0,116820.0,0.77269612]
[1754719218194,0.26002101,116830.0,116820.0,0.13706194]
[1754719218452,0.26002101,116830.0,116820.0,0.00014194]
[1754719218453,0.26307101,116830.0,116820.0,0.00014194]
[1754719218633,0.28052003,116830.0,116820.0,0.13694194]
[1754719218829,0.28052003,116830.0,116820.0,0.45369903]
[1754719219242,0.28052003,116830.0,116820.0,0.13694194]
[1754719219444,0.28052003,116830.0,116820.0,0.45369903]
[1754719219791,0.41732003,116830.0,116820.0,0.13694194]
[1754719220153,0.41732003,116830.0,116820.0,0.45369903]
[1754719221101,0.41732003,116830.0,116820.0,0.13694194]
[1754719221927,0.41732003,116830.0,116820.0,0.45369903]
[1754719222139,0.41732003,116830.0,116820.0,0.13694194]
[1754719222556,0.41732003,116830.0,116820.0,0.31689903]
[1754719222760,0.41732003,116830.0,116820.0,0.00014194]
[1754719223380,0.41732003,116830.0,116820.0,0.13690194]
[1754719223592,0.41732003,116830.0,116820.0,0.45365903]
[1754719225290,0.28052003,116830.0,116820.0,0.45365903]
[1754719226166,0.28052003,116830.0,116820.0,0.13690194]
[1754719226353,0.28052003,116830.0,116820.0,0.45365903]
[1754719226975,0.27747003,116830.0,116820.0,0.49932793]
[1754719227200,0.27747003,116830.0,116820.0,0.45365903]
[1754719227402,0.27747003,116830.0,116820.0,0.45577903]
[1754719228017,0.27747003,116830.0,116820.0,0.13902194]
[1754719228220,0.27747003,116830.0,116820.0,0.45577903]
[1754719229258,0.27747003,116830.0,116820.0,0.45890903]
[1754719230177,0.27747003,116830.0,116820.0,0.77566612]
[1754719231334,0.27747003,116830.0,116820.0,0.53647564]
[1754719232020,0.27747003,116830.0,116820.0,0.77566612]
[1754719232673,0.27747003,116830.0,116820.0,0.14215194]
[1754719232851,0.27747003,116830.0,116820.0,0.77566612]
[1754719233083,0.27747003,116830.0,116820.0,0.45890903]
[1754719236482,0.27550003,116830.0,116820.0,0.45890903]
[1754719236956,0.27550003,116830.0,116820.0,0.14215194]
[1754719237447,0.27761003,116830.0,116820.0,0.45890903]
[1754719237910,0.27761003,116830.0,116820.0,0.14215194]
[1754719238184,0.27761003,116830.0,116820.0,0.13674194]
[1754719238441,0.28058003,116830.0,116820.0,0.13674194]
[1754719238683,0.28058003,116830.0,116820.0,0.45349903]
[1754719239809,0.27761003,116830.0,116820.0,0.45349903]
[1754719242504,0.27761003,116830.0,116820.0,0.13674194]
[1754719242735,0.28058003,116830.0,116820.0,0.45345903]
[1754719243157,0.28058003,116830.0,116820.0,0.13670194]
[1754719244254,0.27761003,116830.0,116820.0,0.45345903]
[1754719244498,0.27761003,116830.0,116820.0,0.13670194]
[1754719245072,0.27761003,116830.0,116820.0,0.13882194]
[1754719246689,0.27761003,116830.0,116820.0,0.45557903]
[1754719246919,0.27761003,116830.0,116820.0,0.13882194]
[1754719247192,0.27761003,116830.0,116820.0,0.45557903]
[1754719248370,0.27761003,116830.0,116820.0,0.13882194]
[1754719248581,0.27761003,116830.0,116820.0,0.45557903]
[1754719250757,0.27761003,116830.0,116820.0,0.45870903]
[1754719251587,0.27761003,116830.0,116820.0,0.00226194]
[1754719251789,0.27761003,116830.0,116820.0,0.45549903]
[1754719254597,0.27761003,116830.0,116820.0,0.13874194]
[1754719255018,0.27761003,116830.0,116820.0,0.45549903]
[1754719255424,0.27761003,116830.0,116820.0,0.13874194]
[1754719255628,0.27761003,116830.0,116820.0,0.45549903]
[1754719257342,0.27761003,116830.0,116820.0,0.45864903]
[1754719257556,0.27761003,116830.0,116820.0,0.14189194]
[1754719257762,0.27761003,116830.0,116820.0,0.45864903]
[1754719258828,0.27761003,116830.0,116820.0,0.14189194]
[1754719259055,0.27761003,116830.0,116820.0,0.45864903]
[1754719263159,0.27761003,116830.0,116820.0,0.32216903]
[1754719263384,0.27761003,116830.0,116820.0,0.45852903]
[1754719263622,0.27761003,116830.0,116820.0,0.00541194]
[1754719263784,0.27761003,116830.0,116820.0,0.45852903]
[1754719264174,0.27761003,116830.0,116820.0,0.14177194]
[1754719264389,0.27761003,116830.0,116820.0,0.45852903]
[1754719267146,0.27761003,116830.0,116820.0,0.45848903]
[1754719267469,0.27761003,116830.0,116820.0,0.32216903]
[1754719267688,0.27761003,116830.0,116820.0,0.45848903]
[1754719267929,0.27761003,116830.0,116820.0,0.32216903]
[1754719268124,0.27761003,116830.0,116820.0,0.45844903]
[1754719269825,0.27761003,116830.0,116820.0,0.14169194]
[1754719270676,0.27761003,116830.0,116820.0,0.00541194]
[1754719271103,0.27761003,116830.0,116820.0,0.14169194]
[1754719271509,0.27761003,116830.0,116820.0,0.00541194]
[1754719272172,0.27761003,116830.0,116820.0,0.14165194]
[1754719272381,0.27761003,116830.0,116820.0,0.45840903]
[1754719273044,0.27761003,116830.0,116820.0,0.14165194]
[1754719273190,0.27761003,116830.0,116820.0,0.45840903]
[1754719273399,0.27761003,116830.0,116820.0,0.14165194]
[1754719273602,0.27761003,116830.0,116820.0,0.45840903]
[1754719274044,0.27761003,116830.0,116820.0,0.13850194]
[1754719274442,0.27761003,116830.0,116820.0,0.45525903]
[1754719276905,0.27761003,116830.0,116820.0,0.00226194]
[1754719277105,0.59754712,116830.0,116820.0,0.00014194]
[1754719277308,0.62326012,116830.0,116820.0,0.00014194]
[1754719279078,0.30650303,116830.0,116820.0,0.00014194]
[1754719279300,0.62326012,116830.0,116820.0,0.00014194]
[1754719281403,1.32740514,116830.0,116820.0,0.00014194]
[1754719281515,1.01064805,116830.0,116820.0,0.00014194]
[1754719281716,0.69389096,116830.0,116820.0,0.00014194]
[1754719281958,1.01064805,116830.0,116820.0,0.00014194]
[1754719282538,1.29922658,116830.0,116820.0,0.00014194]
[1754719282759,1.30022658,116830.0,116820.0,0.00014194]
[1754719283157,0.65652664,116830.0,116820.0,0.00014194]
[1754719283367,0.97328373,116830.0,116820.0,0.00014194]
[1754719288952,1.10936373,116830.0,116820.0,0.00014194]
[1754719290021,0.79260664,116830.0,116820.0,0.00014194]
[1754719290229,1.10936373,116830.0,116820.0,0.00014194]
[1754719290651,1.19615798,116830.0,116820.0,0.00014194]
[1754719290866,1.10936373,116830.0,116820.0,0.00014194]
[1754719291091,0.79260664,116830.0,116820.0,0.00014194]
[1754719291302,1.10936373,116830.0,116820.0,0.00014194]
[1754719291955,0.79260664,116830.0,116820.0,0.00014194]
[1754719292383,1.10936373,116830.0,116820.0,0.00014194]
[1754719292598,0.79260664,116830.0,116820.0,0.00014194]
[1754719292813,0.79260664,116830.0,116820.0,0.31689903]
[1754719292992,0.78458303,116830.0,116820.0,0.00014194]
[1754719295191,0.78458303,116830.0,116820.0,0.31689903]
[1754719300720,0.87137728,116830.0,116820.0,0.00014194]
[1754719300944,0.87137728,116830.0,116820.0,0.31689903]
[1754719301363,0.87939039,116830.0,116820.0,0.31689903]
[1754719301773,0.79259614,116830.0,116820.0,0.31689903]
[1754719301983,0.79259614,116830.0,116820.0,0.00014194]
[1754719302248,0.79259614,116830.0,116820.0,0.31689903]
[1754719304980,1.10935323,116830.0,116820.0,0.00014194]
[1754719306467,0.79259614,116830.0,116820.0,0.00014194]
[1754719306673,1.10935323,116830.0,116820.0,0.00014194]
[1754719306790,0.79259614,116830.0,116820.0,0.00014194]
[1754719307005,1.10935323,116830.0,116820.0,0.00014194]
[1754719308619,1.19614748,116830.0,116820.0,0.00014194]
[1754719309065,1.20473297,116830.0,116820.0,0.00014194]
[1754719309464,1.20474404,116830.0,116820.0,0.00014194]
[1754719310528,0.17124528,116800.0,116790.0,0.00319]
[1754719310741,0.71074448,116800.0,116790.0,0.00541196]
[1754719310952,0.39398739,116800.0,116790.0,0.32216905]
[1754719312020,0.39398739,116800.0,116790.0,0.32516905]
[1754719312437,0.39398739,116800.0,116790.0,0.00641196]
[1754719312645,0.39398739,116800.0,116790.0,0.32316905]
[1754719313038,0.39398739,116800.0,116790.0,0.32416905]
[1754719313463,0.39398739,116800.0,116790.0,0.00741196]
[1754719315081,0.39398739,116800.0,116790.0,0.32416905]
[1754719316317,0.39382739,116800.0,116790.0,0.00741196]
[1754719316510,0.39382739,116800.0,116790.0,0.32416905]
[1754719316748,0.39382739,116800.0,116790.0,0.40542788]
[1754719317774,0.39382739,116800.0,116790.0,0.08867079]
[1754719317980,0.39382739,116800.0,116790.0,0.32416905]
[1754719320545,0.39374739,116800.0,116790.0,0.00741196]
[1754719320759,0.39374739,116800.0,116790.0,0.32416905]
[1754719321993,0.39374739,116800.0,116790.0,0.45996905]
[1754719322546,0.25794739,116800.0,116790.0,0.45996905]
[1754719322758,0.25794739,116800.0,116790.0,0.5467633]
[1754719325691,0.25794739,116800.0,116790.0,0.23000621]
[1754719325898,0.25794739,116800.0,116790.0,0.45996905]
[1754719326737,0.32957501,116800.0,116790.0,0.00741196]
[1754719326971,0.1712728,116780.0,116760.0,0.3050986]
[1754719327186,0.17127686,116770.0,116760.0,0.0004]
[1754719327396,0.1712728,116780.0,116770.0,0.00196]
[1754719327832,0.1712728,116780.0,116770.0,0.31871709]
[1754719328259,0.1712728,116780.0,116770.0,0.00196]
[1754719328963,0.1712728,116780.0,116770.0,0.32194709]
[1754719329173,0.1712728,116780.0,116770.0,0.32394709]
[1754719329389,0.1712728,116780.0,116770.0,0.00719]
[1754719329596,0.1712728,116780.0,116770.0,0.32394709]
[1754719329806,0.1712728,116780.0,116770.0,0.32494709]
[1754719330247,0.1712728,116780.0,116770.0,0.00819]
[1754719330464,0.1712728,116780.0,116770.0,0.64170418]
[1754719330987,0.1712728,116780.0,116770.0,0.72849843]
[1754719331224,0.1712728,116780.0,116770.0,0.09498425]
[1754719331450,0.1712728,116780.0,116770.0,0.64170418]
[1754719332849,0.1712728,116780.0,116770.0,0.00819]
[1754719333076,0.1712728,116780.0,116770.0,0.64170418]
[1754719333288,0.1712728,116780.0,116770.0,0.00819]
[1754719333495,0.1712728,116780.0,116770.0,0.63847418]
[1754719333708,0.1712728,116780.0,116770.0,0.64170418]
[1754719334160,0.1712728,116780.0,116770.0,0.00819]
[1754719334371,0.1712728,116780.0,116770.0,0.64170418]
[1754719336714,0.1712728,116780.0,116770.0,0.43071768]
[1754719337680,0.1712728,116780.0,116770.0,0.15324]
[1754719337935,0.1734228,116780.0,116770.0,0.15324]
[1754719338133,0.1765628,116780.0,116770.0,0.57576768]
[1754719338342,0.17625494,116780.0,116770.0,0.15324]
[1754719338561,0.17625494,116780.0,116770.0,0.57476768]
[1754719338767,0.17625494,116780.0,116770.0,0.15324]
[1754719338967,0.17625494,116780.0,116770.0,0.57476768]
[1754719339369,0.17625494,116780.0,116770.0,0.21007977]
[1754719339555,0.17625494,116780.0,116770.0,0.57180768]
[1754719340405,0.17625494,116780.0,116770.0,0.15124]
[1754719340875,0.17625494,116780.0,116770.0,0.57180768]
[1754719341293,0.17625494,116780.0,116770.0,0.14928]
[1754719341511,0.17625494,116780.0,116770.0,0.57180768]
[1754719341743,0.17625494,116780.0,116770.0,0.63542585]
[1754719341744,0.17096494,116780.0,116770.0,0.63542585]
[1754719342186,0.17096494,116780.0,116770.0,0.20974817]